bitfinex/quotes_SOLUSD_20241216
["timestamp","ask_amount","ask_price","bid_price","bid_amount"]
[1734309889187,0.82752817,226.61,226.5,11.47874065]
[1734309890102,6.616,226.6,226.47,11.47874065]
[1734309890295,0.82767922,226.59,226.45,11.47874065]
[1734309891199,0.82767922,226.59,226.36,35.63692035]
[1734309891200,0.82767922,226.59,226.42,11.47874065]
[1734309891398,1.5534,226.58,226.41,11.47874065]
[1734309891616,0.82790521,226.57,226.41,11.47874065]
[1734309892173,11.8815,226.56,226.4,11.47874065]
[1734309892324,11.8815,226.56,226.38,11.47874065]
[1734309892325,2.38136904,226.55,226.38,11.47874065]
[1734309893513,5.5177,226.54,226.38,11.47874065]
[1734309893823,0.82800731,226.53,226.42,11.47874065]
[1734309894132,0.82800731,226.53,226.33,11.0458]
[1734309894290,0.82800731,226.53,226.38,11.47874065]
[1734309894824,6.3642,226.52,226.38,11.47874065]
[1734309895118,6.3642,226.52,226.33,11.0458]
[1734309895119,0.82804915,226.51,226.37,11.47874065]
[1734309895319,0.82804915,226.51,226.31,1.72069318]
[1734309895320,6.34674915,226.51,226.36,11.47874065]
[1734309895521,1.5534,226.5,226.37,11.47874065]
[1734309895824,0.82806706,226.49,226.37,11.47874065]
[1734309896037,0.82806706,226.49,226.36,11.47874065]
[1734309896197,0.82806706,226.49,226.37,11.47874065]
[1734309896626,0.82806706,226.49,226.36,11.47874065]
[1734309897338,0.82806706,226.49,226.31,2.61944275]
[1734309897510,0.82806706,226.49,226.36,11.47874065]
[1734309897712,0.82806706,226.49,226.37,11.47874065]
[1734309898108,0.82806706,226.49,226.31,2.61944275]
[1734309898438,0.82806706,226.49,226.26,6.175]
[1734309898439,0.82806706,226.49,226.34,11.47874065]
[1734309898610,6.161,226.43,226.28,11.47874065]
[1734309898820,1.563,226.41,226.26,11.47874065]
[1734309899127,0.82847993,226.4,226.25,11.47874065]
[1734309900540,5.5214,226.39,226.24,11.47874065]
[1734309900734,0.82854841,226.38,226.24,11.47874065]
[1734309901206,0.82854841,226.38,226.24,0.78477531]
[1734309901612,0.82854841,226.38,226.25,11.47874065]
[1734309902011,0.82854841,226.38,226.27,11.47874065]
[1734309902235,0.82847899,226.4,226.3,11.47874065]
[1734309903051,1.563,226.41,226.34,11.47874065]
[1734309903212,6.161,226.43,226.38,11.47874065]
[1734309903426,6.161,226.43,226.4,11.47874065]
[1734309903737,7.929,226.53,226.42,11.47874065]
[1734309903945,0.82795705,226.52,226.42,11.47874065]
[1734309904665,0.82795705,226.52,226.4,11.47874065]
[1734309904830,0.82795705,226.52,226.41,11.47874065]
[1734309905028,7.929,226.53,226.45,11.47874065]
[1734309905329,6.2822,226.53,226.47,11.47874065]
[1734309905550,6.2822,226.53,226.48,11.47874065]
[1734309906933,6.0262,226.59,226.49,11.47874065]
[1734309907133,6.0262,226.59,226.51,11.47874065]
[1734309907461,9.21440619,226.64,226.54,11.47874065]
[1734309907661,10.04176971,226.64,226.54,11.47874065]
[1734309907964,10.04176971,226.64,226.52,11.47874065]
[1734309908142,10.04176971,226.64,226.5,11.47874065]
[1734309908323,10.04176971,226.64,226.41,5.41144393]
[1734309908655,10.04176971,226.64,226.45,11.47874065]
[1734309908827,10.04176971,226.64,226.46,11.47874065]
[1734309909027,10.04176971,226.64,226.47,11.47874065]
[1734309909334,5.5155,226.63,226.47,11.47874065]
[1734309909525,0.82763907,226.62,226.5,11.47874065]
[1734309909832,0.82763907,226.62,226.47,11.47874065]
[1734309910036,14.29768253,226.61,226.47,11.47874065]
[1734309910253,0.82764569,226.6,226.47,11.47874065]
[1734309910564,0.82765888,226.63,226.51,11.47874065]
[1734309910740,10.04187935,226.64,226.53,11.47874065]
[1734309910970,10.04187935,226.64,226.56,11.47874065]
[1734309910971,9.21440619,226.64,226.56,11.47874065]
[1734309911174,15.96739265,226.63,226.56,11.47874065]
[1734309911374,9.21440619,226.64,226.56,11.47874065]
[1734309911575,9.21440619,226.64,226.55,11.47874065]
[1734309912390,9.21440619,226.64,226.48,11.0385]
[1734309912594,0.82731807,226.63,226.5,11.47874065]
[1734309912761,14.03523966,226.63,226.53,11.47874065]
[1734309912961,10.04187715,226.64,226.53,11.47874065]
[1734309913161,9.21440619,226.64,226.53,11.47874065]
[1734309913986,9.21440619,226.64,226.54,11.47874065]
[1734309914197,11.60891341,226.63,226.54,11.47874065]
[1734309914497,9.21440619,226.64,226.54,11.47874065]
[1734309914721,9.21440619,226.64,226.52,11.47874065]
[1734309914994,10.04182609,226.64,226.52,11.47874065]
[1734309915296,10.04182609,226.64,226.53,11.47874065]
[1734309915596,10.04182609,226.64,226.51,11.47874065]
[1734309915756,10.04182609,226.64,226.42,10.41144393]
[1734309915757,10.04182609,226.64,226.38,12.5932]
[1734309915955,10.04182609,226.64,226.38,7.5932]
[1734309916155,10.04182609,226.64,226.43,11.47874065]
[1734309916370,10.0,226.63,226.43,11.47874065]
[1734309916588,6.2383,226.61,226.42,11.47874065]
[1734309916800,1.6473,226.58,226.4,11.47874065]
[1734309916965,0.82794057,226.57,226.39,11.47874065]
[1734309917764,5.5173,226.56,226.39,11.47874065]
[1734309917962,0.82794527,226.55,226.39,18.3756582]
[1734309918195,0.82794527,226.55,226.4,18.3756582]
[1734309918363,0.82794527,226.55,226.43,18.3756582]
[1734309918577,0.82773874,226.57,226.45,18.3756582]
[1734309918883,2.47501619,226.58,226.48,18.3756582]
[1734309919203,1.6473,226.58,226.49,18.3756582]
[1734309919499,1.6473,226.58,226.5,18.3756582]
[1734309919669,6.2383,226.61,226.44,18.3756582]
[1734309919670,6.2383,226.61,226.54,18.3756582]
[1734309919867,6.2383,226.61,226.55,18.3756582]
[1734309920072,9.21440619,226.64,226.47,5.0]
[1734309920280,9.21440619,226.64,226.57,18.3756582]
[1734309921697,14.64257032,226.63,226.57,18.3756582]
[1734309922011,9.21440619,226.64,226.57,18.3756582]
[1734309922780,9.21440619,226.64,226.57,7.10363648]
[1734309922969,9.21440619,226.64,226.58,18.3756582]
[1734309923373,15.37394834,226.63,226.55,18.3756582]
[1734309923602,9.21440619,226.64,226.55,18.3756582]
[1734309924213,12.56682641,226.63,226.55,18.3756582]
[1734309924505,9.21440619,226.64,226.55,18.3756582]
[1734309924875,9.21440619,226.64,226.57,18.3756582]
[1734309925286,16.14893223,226.63,226.57,18.3756582]
[1734309925607,9.21440619,226.64,226.57,18.3756582]
[1734309926320,9.21440619,226.64,226.53,18.3756582]
[1734309926321,0.82727766,226.63,226.53,18.3756582]
[1734309926517,9.21440619,226.64,226.54,18.3756582]
[1734309926690,9.21440619,226.64,226.56,18.3756582]
[1734309927431,9.21440619,226.64,226.62,18.3756582]
[1734309927720,9.21440619,226.64,226.63,18.3756582]
[1734309928021,3.57000001,226.64,226.63,18.3756582]
[1734309929315,3.57000001,226.64,226.63,29.4067582]
[1734309931293,3.57000001,226.64,226.63,18.3756582]
[1734309931525,3.57000001,226.64,226.59,11.0329]
[1734309931727,3.57000001,226.64,226.63,18.3756582]
[1734309932146,3.57000001,226.64,226.62,18.3756582]
[1734309932295,3.57000001,226.64,226.61,18.3756582]
[1734309932494,3.57000001,226.64,226.58,18.3756582]
[1734309932815,3.57000001,226.64,226.59,18.3756582]
[1734309933027,3.57000001,226.64,226.6,18.3756582]
[1734309933605,3.57000001,226.64,226.61,18.3756582]
[1734309934120,3.57000001,226.64,226.6,18.3756582]
[1734309934326,12.51759955,226.63,226.6,18.3756582]
[1734309934529,12.51759955,226.63,226.61,18.3756582]
[1734309934822,3.57000001,226.64,226.6,18.3756582]
[1734309935507,3.57000001,226.64,226.61,18.3756582]
[1734309935811,3.57000001,226.64,226.62,18.3756582]
[1734309936018,3.57000001,226.64,226.63,18.3756582]
[1734309939619,3.57000001,226.64,226.6,11.0323]
[1734309939808,3.57000001,226.64,226.59,18.3756582]
[1734309940217,3.57000001,226.64,226.61,18.3756582]
[1734309941116,3.57000001,226.64,226.63,18.3756582]
[1734309944630,0.98310001,226.64,226.63,18.3756582]
[1734309944809,1e-08,226.64,226.63,18.3756582]
[1734309946410,0.5388671,226.72,226.68,18.3756582]
[1734309947241,0.5388671,226.72,226.59,11.0326]
[1734309947535,0.5388671,226.72,226.59,29.4082582]
[1734309947736,0.5388671,226.72,226.61,18.3756582]
[1734309949025,0.5388671,226.72,226.63,18.3756582]
[1734309949851,0.5388671,226.72,226.59,18.3756582]
[1734309950064,0.82712583,226.71,226.59,18.3756582]
[1734309950351,0.82712583,226.71,226.6,18.3756582]
[1734309950732,0.82712583,226.71,226.61,18.3756582]
[1734309950939,0.5388671,226.72,226.61,18.3756582]
[1734309951142,0.8270922,226.71,226.61,18.3756582]
[1734309951344,0.8270922,226.71,226.61,5.73099762]
[1734309951549,0.82698093,226.7,226.62,18.3756582]
[1734309951928,0.82698093,226.7,226.59,18.3756582]
[1734309952132,0.82698093,226.7,226.61,18.3756582]
[1734309952641,1.3660765,226.72,226.61,18.3756582]
[1734309953130,0.5388671,226.72,226.63,18.3756582]
[1734309954150,1.36595855,226.72,226.63,18.3756582]
[1734309954326,0.5388671,226.72,226.63,18.3756582]
[1734309955454,1.6208,226.7,226.59,18.3756582]
[1734309955625,1.6208,226.7,226.63,18.3756582]
[1734309956253,1.6208,226.7,226.61,18.3756582]
[1734309957057,1.6208,226.7,226.58,18.3756582]
[1734309957058,0.82712246,226.69,226.58,18.3756582]
[1734309957269,0.82712246,226.69,226.6,18.3756582]
[1734309957755,1.6208,226.7,226.6,18.3756582]
[1734309958134,0.82720307,226.69,226.6,18.3756582]
[1734309958335,2.44799997,226.7,226.6,18.3756582]
[1734309959356,0.82720212,226.69,226.58,18.3756582]
[1734309960360,6.0313,226.68,226.58,18.3756582]
[1734309960667,0.82733799,226.67,226.58,18.3756582]
[1734309961157,0.5388671,226.72,226.66,18.3756582]
[1734309961464,0.5388671,226.72,226.69,18.3756582]
[1734309961833,0.5388671,226.72,226.71,18.3756582]
[1734309966371,13.27688662,226.72,226.71,18.3756582]
[1734309966747,0.5388671,226.72,226.71,18.3756582]
[1734309967382,0.5388671,226.72,226.69,18.3756582]
[1734309967580,0.5388671,226.72,226.67,18.3756582]
[1734309968576,0.5388671,226.72,226.7,18.3756582]
[1734309969153,0.5388671,226.72,226.71,18.3756582]
[1734309969751,0.5388671,226.72,226.46,49.14117903]
[1734309970080,0.5388671,226.72,226.71,18.3756582]
[1734309970878,13.79763414,226.72,226.71,18.3756582]
[1734309971188,0.5388671,226.72,226.71,18.3756582]
[1734309971550,0.5388671,226.72,226.69,18.3756582]
[1734309972761,12.43713592,226.71,226.69,18.3756582]
[1734309972956,0.5388671,226.72,226.69,18.3756582]
[1734309973364,0.5388671,226.72,226.71,18.3756582]
[1734309974259,0.5388671,226.72,226.69,18.3756582]
[1734309976056,5.0,226.71,226.67,18.3756582]
[1734309976281,10.0,226.69,226.63,18.3756582]
[1734309976584,5.0,226.66,226.62,18.3756582]
[1734309976957,5.0,226.66,226.61,18.3756582]
[1734309977359,5.0,226.67,226.63,18.3756582]
[1734309977555,6.4099,226.7,226.66,18.3756582]
[1734309977781,0.5388671,226.72,226.67,18.3756582]
[1734309977985,0.5388671,226.72,226.69,18.3756582]
[1734309978184,0.5388671,226.72,226.7,18.3756582]
[1734309978354,0.5388671,226.72,226.69,18.3756582]
[1734309978690,0.5388671,226.72,226.71,18.3756582]
[1734309978980,0.5388671,226.72,226.7,18.3756582]
[1734309979178,0.5388671,226.72,226.69,18.3756582]
[1734309979388,5.0,226.71,226.66,18.3756582]
[1734309979568,5.0,226.71,226.67,18.3756582]
[1734309980083,0.5388671,226.72,226.68,11.45668521]
[1734309980683,5.0,226.71,226.67,11.45668521]
[1734309980885,0.5388671,226.72,226.67,11.45668521]
[1734309981057,5.0,226.69,226.64,11.45668521]
[1734309981262,5.0,226.69,226.59,2.61412861]
[1734309981263,10.0,226.69,226.63,11.45668521]
[1734309981565,5.0,226.67,226.63,11.45668521]
[1734309981770,5.0,226.63,226.58,11.45668521]
[1734309981975,10.0,226.63,226.57,11.45668521]
[1734309982160,5.0,226.61,226.55,11.45668521]
[1734309982360,10.0,226.61,226.55,11.45668521]
[1734309982851,5.0,226.61,226.55,11.45668521]
[1734309983193,5.0,226.6,226.55,11.45668521]
[1734309983479,5.0,226.61,226.51,1.6658]
[1734309983480,10.0,226.61,226.57,11.45668521]
[1734309983856,5.0,226.61,226.57,11.45668521]
[1734309984984,10.0,226.63,226.58,11.45668521]
[1734309985159,10.0,226.63,226.53,2.62075612]
[1734309985160,5.0,226.63,226.59,11.45668521]
[1734309985580,5.0,226.62,226.59,11.45668521]
[1734309985781,5.0,226.63,226.6,11.45668521]
[1734309985986,8.62517959,226.7,226.62,11.45668521]
[1734309985987,10.0,226.68,226.62,11.45668521]
[1734309986192,17.7979,226.7,226.65,11.45668521]
[1734309986409,5.0,226.68,226.66,11.45668521]
[1734309986707,10.0,226.68,226.66,11.45668521]
[1734309986996,10.0,226.68,226.65,11.45668521]
[1734309986997,5.0,226.68,226.65,11.45668521]
[1734309987608,5.0,226.67,226.65,11.45668521]
[1734309987892,5.0,226.69,226.64,11.45668521]
[1734309988485,5.0,226.67,226.64,11.45668521]
[1734309988691,5.0,226.69,226.64,11.45668521]
[1734309988888,5.0,226.69,226.65,11.45668521]
[1734309989706,16.1449,226.76,226.67,11.45668521]
[1734309989910,16.1449,226.76,226.7,11.45668521]
[1734309990474,5.0,226.75,226.7,11.45668521]
[1734309990698,5.0,226.76,226.71,11.45668521]
[1734309991088,5.0,226.76,226.63,11.0309]
[1734309991289,5.0,226.74,226.71,11.45668521]
[1734309991503,5.0,226.76,226.71,11.45668521]
[1734309993210,5.0,226.76,226.68,2.60645789]
[1734309993392,5.0,226.76,226.71,11.45668521]
[1734309994399,5.0,226.77,226.71,11.45668521]
[1734309998085,6.6317,226.8,226.69,11.0282]
[1734309998283,5.0,226.78,226.74,11.45668521]
[1734309998478,5.0,226.78,226.72,11.45668521]
[1734309998780,10.0,226.78,226.73,11.45668521]
[1734309999007,5.0,226.78,226.72,11.45668521]
[1734309999312,5.0,226.76,226.7,11.45668521]
[1734309999883,10.0,226.76,226.69,11.45668521]
[1734310000119,10.0,226.76,226.68,14.0631431]
[1734310000489,5.0,226.76,226.71,11.45668521]
[1734310000711,5.0,226.76,226.72,11.45668521]
[1734310000897,5.0,226.78,226.74,11.45668521]
[1734310001106,5.0,226.8,226.75,11.45668521]
[1734310001304,5.0,226.82,226.68,11.0283]
[1734310001616,5.0,226.82,226.71,11.45668521]
[1734310001617,5.0,226.76,226.71,11.45668521]
[1734310001784,5.0,226.78,226.71,11.45668521]
[1734310001989,5.0,226.79,226.73,11.45668521]
[1734310003017,5.0,226.79,226.75,11.45668521]
[1734310003191,5.0,226.81,226.77,11.45668521]
[1734310003791,5.0,226.83,226.77,11.45668521]
[1734310004414,5.0,226.83,226.75,1.6326]
[1734310004415,5.0,226.83,226.79,11.45668521]
[1734310005691,5.0,226.83,226.81,11.45668521]
[1734310005920,5.0,226.86,226.81,11.45668521]
[1734310006107,5.0,226.9,226.85,11.45668521]
[1734310006422,5.0,226.82,226.75,1.6326]
[1734310006626,5.0,226.8,226.74,11.45668521]
[1734310006933,5.0,226.79,226.73,11.45668521]
[1734310007102,5.0,226.8,226.75,11.45668521]
[1734310007518,5.0,226.8,226.7,1.5234]
[1734310007519,12.84962552,226.81,226.79,11.45668521]
[1734310007904,5.0,226.84,226.79,11.45668521]
[1734310008099,5.0,226.84,226.83,11.45668521]
[1734310009521,4.5,226.84,226.83,11.45668521]
[1734310009726,4.5,226.84,226.81,11.45668521]
[1734310010229,5.0,226.83,226.81,11.45668521]
[1734310010733,4.5,226.84,226.81,11.45668521]
[1734310011302,5.0,226.83,226.81,11.45668521]
[1734310011511,4.5,226.84,226.81,11.45668521]
[1734310011710,5.0,226.83,226.81,11.45668521]
[1734310012363,5.0,226.82,226.79,11.45668521]
[1734310012533,5.0,226.82,226.78,11.45668521]
[1734310012732,9.5,226.84,226.78,11.45668521]
[1734310013026,0.82655292,226.91,226.78,11.45668521]
[1734310013027,5.0,226.8,226.78,11.45668521]
[1734310013234,9.5,226.84,226.79,11.45668521]
[1734310013430,4.5,226.86,226.83,11.45668521]
[1734310014132,5.0,226.88,226.83,11.45668521]
[1734310014334,6.1536,226.92,226.78,1.77168301]
[1734310014335,11.1575,226.91,226.86,11.45668521]
[1734310014505,11.1575,226.91,226.79,17.1765]
[1734310014706,9.5,226.86,226.81,11.45668521]
[1734310017033,5.0,226.86,226.83,11.45668521]
[1734310017534,9.5,226.88,226.83,11.45668521]
[1734310017711,5.0,226.88,226.83,11.45668521]
[1734310018030,4.5,226.87,226.83,11.45668521]
[1734310018236,9.5,226.9,226.83,11.45668521]
[1734310018536,0.5388671,226.94,226.87,11.45668521]
[1734310018537,5.0,226.92,226.87,11.45668521]
[1734310018907,5.0,226.92,226.85,11.45668521]
[1734310019204,5.0,226.92,226.89,11.45668521]
[1734310019417,5.0,226.92,226.87,11.45668521]
[1734310019623,4.5,226.91,226.85,11.45668521]
[1734310019810,5.0,226.89,226.85,11.45668521]
[1734310020020,9.5,226.89,226.85,11.45668521]
[1734310020218,4.5,226.86,226.83,11.45668521]
[1734310020419,4.5,226.86,226.81,11.45668521]
[1734310020619,5.0,226.87,226.81,11.45668521]
[1734310020909,5.0,226.87,226.83,11.45668521]
[1734310021228,4.5,226.86,226.83,11.45668521]
[1734310021421,4.5,226.86,226.81,11.45668521]
[1734310021613,9.5,226.89,226.83,11.45668521]
[1734310021810,0.5388671,226.94,226.83,11.45668521]
[1734310021811,5.0,226.87,226.83,11.45668521]
[1734310022014,4.5,226.88,226.83,11.45668521]
[1734310022214,5.0,226.87,226.83,11.45668521]
[1734310022424,4.5,226.88,226.83,11.45668521]
[1734310022742,4.5,226.88,226.85,11.45668521]
[1734310022916,4.5,226.9,226.87,11.45668521]
[1734310023121,5.0,226.87,226.83,11.45668521]
[1734310023331,5.0,226.88,226.83,11.45668521]
[1734310023513,4.5,226.88,226.83,11.45668521]
[1734310023724,5.0,226.89,226.83,11.45668521]
[1734310024120,9.5,226.89,226.85,11.45668521]
[1734310024530,5.0,226.88,226.85,11.45668521]
[1734310026256,5.0,226.88,226.83,11.45668521]
[1734310026420,4.5,226.86,226.81,11.45668521]
[1734310026621,4.5,226.83,226.74,11.0254]
[1734310026852,4.5,226.83,226.77,11.45668521]
[1734310027140,4.5,226.83,226.79,11.45668521]
[1734310027325,9.5,226.88,226.81,11.45668521]
[1734310027531,5.0,226.86,226.81,11.45668521]
[1734310027734,4.5,226.88,226.81,11.45668521]
[1734310027928,4.5,226.88,226.83,11.45668521]
[1734310028128,5.0,226.87,226.83,11.45668521]
[1734310028454,5.0,226.89,226.83,11.45668521]
[1734310028949,5.0,226.87,226.83,11.45668521]
[1734310029655,5.0,226.89,226.83,11.45668521]
[1734310030224,5.0,226.87,226.83,11.45668521]
[1734310030630,4.5,226.9,226.85,11.45668521]
[1734310030851,4.5,226.9,226.87,11.45668521]
[1734310031156,4.5,226.9,226.78,11.0235]
[1734310031463,4.5,226.9,226.87,11.45668521]
[1734310032533,4.5,226.87,226.83,11.45668521]
[1734310032762,9.5,226.89,226.83,11.45668521]
[1734310033060,9.5,226.89,226.85,11.45668521]
[1734310033253,4.5,226.89,226.85,11.45668521]
[1734310033430,4.5,226.89,226.87,11.45668521]
[1734310033959,5.0,226.91,226.87,11.45668521]
[1734310034127,5.0,226.91,226.89,11.45668521]
[1734310034328,5.0388671,226.94,226.89,11.45668521]
[1734310034557,5.0,226.92,226.89,11.45668521]
[1734310035140,9.5,226.92,226.87,11.45668521]
[1734310036439,9.5,226.9,226.84,11.45668521]
[1734310036647,4.5,226.85,226.8,13.64913875]
[1734310036829,4.5,226.85,226.79,14.16030232]
[1734310037024,4.5,226.85,226.81,11.45668521]
[1734310037252,9.5,226.85,226.81,11.45668521]
[1734310037555,5.0,226.85,226.81,11.45668521]
[1734310037756,5.0,226.87,226.84,11.45668521]
[1734310037959,5.0,226.87,226.82,11.45668521]
[1734310038145,4.5,226.88,226.82,11.45668521]
[1734310038459,5.0,226.89,226.84,11.45668521]
[1734310038663,4.5,226.88,226.84,11.45668521]
[1734310039167,5.0,226.87,226.82,11.45668521]
[1734310039343,4.5,226.86,226.82,11.45668521]
[1734310040059,9.5,226.86,226.82,11.45668521]
[1734310040241,4.5,226.81,226.77,11.45668521]
[1734310040429,4.5,226.78,226.75,11.45668521]
[1734310041244,4.5,226.78,226.77,11.45668521]
[1734310041836,4.5,226.81,226.77,11.45668521]
[1734310042044,4.5,226.81,226.79,11.45668521]
[1734310042257,5.0,226.83,226.8,11.45668521]
[1734310042441,4.5,226.82,226.78,11.45668521]
[1734310042644,5.0,226.83,226.79,11.45668521]
[1734310043055,5.0,226.83,226.81,11.45668521]
[1734310043234,11.4492,226.85,226.81,11.45668521]
[1734310043764,5.0,226.83,226.73,11.0263]
[1734310044066,5.0,226.84,226.8,11.45668521]
[1734310044361,9.5,226.86,226.82,11.45668521]
[1734310044737,4.5,226.86,226.82,11.45668521]
[1734310045848,9.5,226.88,226.82,11.45668521]
[1734310046159,9.5,226.88,226.74,5.15584791]
[1734310046160,4.5,226.75,226.74,5.15584791]
[1734310046366,4.5,226.75,226.6,0.5]
[1734310046367,4.5,226.75,226.7,11.45668521]
[1734310047067,4.5,226.75,226.72,11.45668521]
[1734310047239,4.5,226.75,226.69,2.60720603]
[1734310047434,4.5,226.75,226.71,11.45668521]
[1734310047746,9.5,226.71,226.62,16.18714791]
[1734310048069,6.6493,226.79,226.6,5.0]
[1734310048070,4.5,226.65,226.6,5.0]
[1734310048369,9.5,226.63,226.59,11.45668521]
[1734310048540,9.5,226.63,226.57,2.17232173]
[1734310048541,4.5,226.61,226.57,11.45668521]
[1734310048740,4.5,226.59,226.57,11.45668521]
[1734310048942,4.5,226.59,226.52,4.87418125]
[1734310048943,9.5,226.59,226.55,11.45668521]
[1734310049178,5.0,226.57,226.55,11.45668521]
[1734310049343,4.5,226.59,226.55,11.45668521]
[1734310049344,9.5,226.59,226.55,11.45668521]
[1734310049546,9.5,226.59,226.57,11.45668521]
[1734310049949,9.5,226.59,226.56,18.34893084]
[1734310050266,9.5,226.59,226.58,18.34893084]
[1734310050448,9.5,226.59,226.57,18.34893084]
[1734310050758,4.5,226.59,226.58,18.34893084]
[1734310050961,9.5,226.59,226.58,18.34893084]
[1734310051259,5.0,226.57,226.56,18.34893084]
[1734310051473,9.5,226.57,226.54,18.34893084]
[1734310051839,5.0,226.59,226.56,18.34893084]
[1734310052149,4.5,226.6,226.58,18.34893084]
[1734310053070,5.0,226.61,226.58,18.34893084]
[1734310053574,5.0,226.65,226.6,18.34893084]
[1734310053758,4.5,226.66,226.64,18.34893084]
[1734310054154,5.0,226.67,226.64,18.34893084]
[1734310054371,5.0,226.67,226.56,18.34893084]
[1734310054372,5.0,226.67,226.65,18.34893084]
[1734310054679,4.5,226.66,226.65,18.34893084]
[1734310054975,5.0,226.69,226.66,18.34893084]
[1734310055176,5.0,226.69,226.68,18.34893084]
[1734310055476,5.0,226.71,226.68,18.34893084]
[1734310055772,4.5,226.73,226.7,18.34893084]
[1734310055973,4.5,226.75,226.71,18.34893084]
[1734310056555,5.0,226.76,226.71,18.34893084]
[1734310056762,4.5,226.77,226.71,18.34893084]
[1734310056763,4.5,226.74,226.71,17.84893084]
[1734310056978,4.5,226.71,226.7,18.34893084]
[1734310057281,9.5,226.71,226.68,18.34893084]
[1734310057453,4.5,226.69,226.67,18.34893084]
[1734310057655,4.5,226.69,226.68,18.34893084]
[1734310058059,4.5,226.69,226.6,13.19557271]
[1734310058060,4.5,226.69,226.67,18.34893084]
[1734310058263,4.5,226.69,226.68,18.34893084]
[1734310059672,6.3968,226.79,226.68,18.34893084]
[1734310059673,9.5,226.73,226.68,18.34893084]
[1734310059880,9.5,226.75,226.72,18.34893084]
[1734310060178,4.5,226.73,226.72,18.34893084]
[1734310060355,9.5,226.73,226.7,18.34893084]
[1734310060560,5.0,226.72,226.7,18.34893084]
[1734310061181,4.5,226.73,226.71,18.34893084]
[1734310061389,4.5,226.7,226.69,18.34893084]
[1734310061582,5.0,226.69,226.67,18.34893084]
[1734310061776,5.0,226.71,226.68,18.34893084]
[1734310062000,5.0,226.71,226.62,11.0316]
[1734310062001,9.5,226.74,226.7,18.34893084]
[1734310062179,5.0,226.72,226.7,18.34893084]
[1734310062387,9.5,226.74,226.7,18.34893084]
[1734310062588,9.5,226.74,226.72,18.34893084]
[1734310063193,9.5,226.74,226.71,18.34893084]
[1734310063772,5.0,226.74,226.73,18.34893084]
[1734310064781,4.5,226.78,226.73,18.34893084]
[1734310065004,5.0,226.75,226.68,29.37713084]
[1734310065185,5.0,226.75,226.74,18.34893084]
[1734310065388,9.5,226.75,226.73,18.34893084]
[1734310066001,4.5,226.73,226.7,18.34893084]
[1734310066188,4.5,226.71,226.7,18.34893084]
[1734310066384,4.5,226.71,226.69,18.34893084]
[1734310066385,9.5,226.71,226.69,18.34893084]
[1734310067097,9.5,226.71,226.65,2.60138367]
[1734310067098,9.5,226.71,226.67,18.34893084]
[1734310067299,5.0,226.69,226.67,18.34893084]
[1734310067489,5.0,226.69,226.68,18.34893084]
[1734310067490,9.5,226.69,226.68,18.34893084]
[1734310068785,9.5,226.69,226.67,18.34893084]
[1734310069007,9.5,226.69,226.65,2.60138367]
[1734310069008,9.5,226.69,226.68,18.34893084]
[1734310069175,4.5,226.67,226.65,18.34893084]
[1734310069503,9.5,226.65,226.64,18.34893084]
[1734310070007,9.5,226.65,226.62,18.34893084]
[1734310070212,9.5,226.65,226.63,18.34893084]
[1734310070399,9.5,226.65,226.64,18.34893084]
[1734310070610,5.0,226.65,226.64,18.34893084]
[1734310071312,5.0,226.66,226.64,18.34893084]
[1734310071491,5.0,226.66,226.65,18.34893084]
[1734310072000,5.0,226.68,226.65,11.45682069]
[1734310072191,5.0,226.68,226.6,2.58714289]
[1734310072192,5.0,226.68,226.67,11.45682069]
[1734310072430,5.0,226.7,226.67,11.45682069]
[1734310072705,5.0,226.7,226.6,13.61954289]
[1734310072706,5.0,226.72,226.69,11.45682069]
[1734310072911,5.0,226.72,226.7,11.45682069]
[1734310073208,5.0,226.72,226.71,11.45682069]
[1734310074195,4.5,226.83,226.71,22.48372069]
[1734310074493,4.5,226.83,226.82,11.45682069]
[1734310075289,5.0,226.87,226.82,11.45682069]
[1734310075495,6.0519,226.92,226.86,11.45682069]
[1734310075496,5.0,226.89,226.86,11.45682069]
[1734310075801,4.5,226.88,226.87,11.45682069]